[Event "Live Chess"]
[Site "Chess.com"]
[Date "2023.05.20"]
[Round "-"]
[White "JohanKjeldahl"]
[Black "HoarseyHorsey"]
[Result "1-0"]
[WhiteElo "1846"]
[BlackElo "1402"]
[TimeControl "300"]
[EndTime "13:38:16 PDT"]
[Termination "JohanKjeldahl won by resignation"]

1. e4 {[%clk 0:04:57.8]} 1... c5 {[%clk 0:04:58.8]} 2. Nf3 {[%clk 0:04:55.7]}
2... e6 {[%clk 0:04:58.3]} 3. d4 {[%clk 0:04:54.2]} 3... cxd4 {[%clk 0:04:57.1]}
4. Nxd4 {[%clk 0:04:53.2]} 4... Nf6 {[%clk 0:04:56.4]} 5. Nc3 {[%clk 0:04:51.9]}
5... Nc6 {[%clk 0:04:55.8]} 6. Be3 {[%clk 0:04:50.6]} 6... Bb4 {[%clk
0:04:54.9]} 7. f3 {[%clk 0:04:45.5]} 7... d5 {[%clk 0:04:54.1]} 8. exd5 {[%clk
0:04:39.2]} 8... exd5 {[%clk 0:04:54]} 9. Bb5 {[%clk 0:04:33.3]} 9... Bd7 {[%clk
0:04:48.4]} 10. O-O {[%clk 0:04:30.7]} 10... Bxc3 {[%clk 0:04:35]} 11. bxc3
{[%clk 0:04:28.3]} 11... O-O {[%clk 0:04:34]} 12. Rb1 {[%clk 0:04:26.5]} 12...
Re8 {[%clk 0:04:32.8]} 13. Bf2 {[%clk 0:04:23.6]} 13... Ne7 {[%clk 0:04:24.9]}
14. Bd3 {[%clk 0:04:21.9]} 14... Nc6 {[%clk 0:04:08.7]} 15. Rxb7 {[%clk
0:04:18]} 15... Rb8 {[%clk 0:04:06.6]} 16. Rxb8 {[%clk 0:04:14.4]} 16... Qxb8
{[%clk 0:04:06.5]} 17. Qb1 {[%clk 0:04:05.5]} 17... a5 {[%clk 0:03:52.9]} 18.
Qb5 {[%clk 0:03:46]} 18... Ne7 {[%clk 0:03:45.7]} 19. Qxa5 {[%clk 0:03:41.5]}
19... Qb2 {[%clk 0:03:33.9]} 20. Re1 {[%clk 0:03:18.4]} 20... Kf8 {[%clk
0:03:18.4]} 21. Bg3 {[%clk 0:03:10.1]} 21... g6 {[%clk 0:03:06.8]} 22. Bd6
{[%clk 0:03:08.3]} 22... Qb7 {[%clk 0:02:42.6]} 23. Qb4 {[%clk 0:02:57.9]} 23...
Qxb4 {[%clk 0:02:32.2]} 24. cxb4 {[%clk 0:02:55.8]} 24... Nh5 {[%clk 0:02:09]}
25. b5 {[%clk 0:02:51.7]} 25... Ng7 {[%clk 0:02:02]} 26. b6 {[%clk 0:02:44.1]}
26... Ne6 {[%clk 0:02:01.2]} 27. Nxe6+ {[%clk 0:02:33.7]} 27... fxe6 {[%clk
0:01:57.5]} 28. b7 {[%clk 0:02:31.9]} 28... Kf7 {[%clk 0:01:51.4]} 29. b8=Q
{[%clk 0:02:29.1]} 29... Nc6 {[%clk 0:01:50]} 30. Qc7 {[%clk 0:02:23.9]} 1-0

[Event "Live Chess"]
[Site "Chess.com"]
[Date "2023.05.20"]
[Round "-"]
[White "AbilifyXL"]
[Black "TheSmoulderingMaster"]
[Result "1-0"]
[WhiteElo "1951"]
[BlackElo "1730"]
[TimeControl "300"]
[EndTime "13:38:18 PDT"]
[Termination "AbilifyXL won by resignation"]

1. d4 {[%clk 0:04:59.2]} 1... Nf6 {[%clk 0:04:58.2]} 2. c4 {[%clk 0:04:58.3]}
2... d6 {[%clk 0:04:57.6]} 3. Nc3 {[%clk 0:04:49.1]} 3... g6 {[%clk 0:04:56.9]}
4. e4 {[%clk 0:04:48.2]} 4... Bg7 {[%clk 0:04:56.4]} 5. Be2 {[%clk 0:04:47.4]}
5... O-O {[%clk 0:04:55.8]} 6. Bg5 {[%clk 0:04:46.8]} 6... c6 {[%clk 0:04:54.6]}
7. Qd2 {[%clk 0:04:45.5]} 7... Qa5 {[%clk 0:04:53.7]} 8. Nf3 {[%clk 0:04:43.5]}
8... Bg4 {[%clk 0:04:51.1]} 9. O-O {[%clk 0:04:41.9]} 9... a6 {[%clk 0:04:49.1]}
10. Bh6 {[%clk 0:04:41.3]} 10... b5 {[%clk 0:04:47.6]} 11. Bxg7 {[%clk
0:04:40.2]} 11... Kxg7 {[%clk 0:04:46.3]} 12. e5 {[%clk 0:04:35.3]} 12... dxe5
{[%clk 0:04:44.4]} 13. dxe5 {[%clk 0:04:34.5]} 13... Nh5 {[%clk 0:04:43.1]} 14.
h3 {[%clk 0:04:26.4]} 14... b4 {[%clk 0:04:35]} 15. Ne4 {[%clk 0:04:17.8]} 15...
Bxf3 {[%clk 0:04:33.4]} 16. Bxf3 {[%clk 0:04:16.8]} 16... Qxe5 {[%clk
0:04:32.4]} 17. Qxb4 {[%clk 0:04:13]} 17... Nf4 {[%clk 0:04:28.4]} 18. Qd2
{[%clk 0:04:08.9]} 18... a5 {[%clk 0:04:24.8]} 19. Rfe1 {[%clk 0:04:07.4]} 19...
Qf5 {[%clk 0:04:15.9]} 20. Ng3 {[%clk 0:04:03.7]} 20... Qg5 {[%clk 0:04:14.9]}
21. Qd4+ {[%clk 0:03:56.1]} 21... Kg8 {[%clk 0:04:11.2]} 22. Re4 {[%clk
0:03:36.5]} 22... Ne6 {[%clk 0:04:05.6]} 23. Qc3 {[%clk 0:03:28.7]} 23... Na6
{[%clk 0:04:03.5]} 24. Rae1 {[%clk 0:03:26.4]} 24... Nac5 {[%clk 0:04:01.1]} 25.
Re5 {[%clk 0:03:25.5]} 25... Qf6 {[%clk 0:03:56.2]} 26. Ne4 {[%clk 0:03:22.2]}
26... Nxe4 {[%clk 0:03:54.6]} 27. Bxe4 {[%clk 0:03:19.7]} 27... Rfd8 {[%clk
0:03:50.6]} 28. Bxc6 {[%clk 0:03:16.9]} 28... Rac8 {[%clk 0:03:48.6]} 29. Bd5
{[%clk 0:03:14.1]} 29... Rc5 {[%clk 0:03:43]} 30. Bxe6 {[%clk 0:03:11.1]} 30...
Rxe5 {[%clk 0:03:37.5]} 31. Bxf7+ {[%clk 0:03:09.9]} 31... Kxf7 {[%clk
0:03:35.3]} 32. Qxe5 {[%clk 0:03:06.5]} 32... Qxe5 {[%clk 0:03:32.6]} 33. Rxe5
{[%clk 0:03:05.5]} 33... Rd2 {[%clk 0:03:31.4]} 34. Rb5 {[%clk 0:03:04.1]} 34...
Rc2 {[%clk 0:03:29.7]} 35. c5 {[%clk 0:03:02.2]} 35... a4 {[%clk 0:03:27.3]} 36.
a3 {[%clk 0:03:00.6]} 36... Ke6 {[%clk 0:03:25.4]} 37. Kf1 {[%clk 0:02:57.2]}
37... Kd5 {[%clk 0:03:24.5]} 38. Rb7 {[%clk 0:02:54.1]} 38... Kxc5 {[%clk
0:03:19]} 39. Rc7+ {[%clk 0:02:53.1]} 1-0

[Event "Live Chess"]
[Site "Chess.com"]
[Date "2023.05.20"]
[Round "-"]
[White "EdvancedChess"]
[Black "FailsGambits"]
[Result "1-0"]
[WhiteElo "1903"]
[BlackElo "1319"]
[TimeControl "300"]
[EndTime "13:38:29 PDT"]
[Termination "EdvancedChess won on time"]

1. e4 {[%clk 0:04:59.4]} 1... e5 {[%clk 0:04:58.9]} 2. Nf3 {[%clk 0:04:58.9]}
2... Nc6 {[%clk 0:04:57.9]} 3. Bb5 {[%clk 0:04:58.4]} 3... a6 {[%clk 0:04:56]}
4. Ba4 {[%clk 0:04:57.5]} 4... Nf6 {[%clk 0:04:54.4]} 5. O-O {[%clk 0:04:56.5]}
5... Be7 {[%clk 0:04:52.3]} 6. Re1 {[%clk 0:04:55.2]} 6... O-O {[%clk
0:04:47.1]} 7. Bxc6 {[%clk 0:04:50.2]} 7... dxc6 {[%clk 0:04:47]} 8. Nxe5 {[%clk
0:04:49]} 8... Re8 {[%clk 0:04:42.1]} 9. Nc3 {[%clk 0:04:43.6]} 9... Bd6 {[%clk
0:04:41.2]} 10. Nf3 {[%clk 0:04:38.9]} 10... Bg4 {[%clk 0:04:36.9]} 11. d3
{[%clk 0:04:35.2]} 11... h6 {[%clk 0:04:34.1]} 12. h3 {[%clk 0:04:33.9]} 12...
Bxf3 {[%clk 0:04:24.9]} 13. Qxf3 {[%clk 0:04:31.8]} 13... Bb4 {[%clk 0:04:12.8]}
14. Be3 {[%clk 0:04:24.3]} 14... Qe7 {[%clk 0:03:59.6]} 15. a3 {[%clk
0:04:20.7]} 15... Bxc3 {[%clk 0:03:58.4]} 16. bxc3 {[%clk 0:04:19.7]} 16... Nd7
{[%clk 0:03:57.7]} 17. Qg4 {[%clk 0:04:14.5]} 17... Nf6 {[%clk 0:03:48.8]} 18.
Qg3 {[%clk 0:04:10.9]} 18... Kh7 {[%clk 0:03:37.3]} 19. f4 {[%clk 0:04:06.6]}
19... Nd7 {[%clk 0:03:17.8]} 20. f5 {[%clk 0:04:02.7]} 20... Qe5 {[%clk
0:03:00.7]} 21. Bf4 {[%clk 0:03:58.5]} 21... Qxc3 {[%clk 0:02:48]} 22. Bxc7
{[%clk 0:03:57.6]} 22... Qxc2 {[%clk 0:02:35.8]} 23. e5 {[%clk 0:03:56.5]} 23...
Qc5+ {[%clk 0:02:27.7]} 24. Kh1 {[%clk 0:03:52.4]} 24... Qf8 {[%clk 0:01:42.5]}
25. e6 {[%clk 0:03:47.4]} 25... fxe6 {[%clk 0:01:39.6]} 26. fxe6 {[%clk
0:03:45.5]} 26... Nc5 {[%clk 0:01:26.4]} 27. Bd6 {[%clk 0:03:43.6]} 27... Qf5
{[%clk 0:01:09.3]} 28. Re5 {[%clk 0:03:41.2]} 28... Qxd3 {[%clk 0:01:01.4]} 29.
Re3 {[%clk 0:03:24.3]} 29... Ne4 {[%clk 0:00:44.8]} 30. Rxd3 {[%clk 0:03:20.9]}
30... Nxg3+ {[%clk 0:00:41.6]} 31. Bxg3 {[%clk 0:03:19.3]} 31... Rxe6 {[%clk
0:00:40.1]} 32. Rb1 {[%clk 0:03:18.6]} 32... b5 {[%clk 0:00:34.8]} 33. Rc3
{[%clk 0:03:14.5]} 33... Rd8 {[%clk 0:00:21.9]} 34. Rbc1 {[%clk 0:03:11.2]}
34... Rc8 {[%clk 0:00:11]} 35. Kh2 {[%clk 0:03:09.6]} 35... Rf6 {[%clk
0:00:02.1]} 36. Rd1 {[%clk 0:03:03.3]} 36... Rf7 {[%clk 0:00:00.8]} 37. Rd6
{[%clk 0:03:01.5]} 1-0

[Event "Live Chess"]
[Site "Chess.com"]
[Date "2023.05.20"]
[Round "-"]
[White "stevochess11"]
[Black "blunderabit"]
[Result "1-0"]
[WhiteElo "1797"]
[BlackElo "1843"]
[TimeControl "300"]
[EndTime "13:38:30 PDT"]
[Termination "stevochess11 won on time"]

1. d4 {[%clk 0:04:59]} 1... Nf6 {[%clk 0:04:57.9]} 2. Nf3 {[%clk 0:04:58.3]}
2... e6 {[%clk 0:04:56.2]} 3. e3 {[%clk 0:04:57.7]} 3... d5 {[%clk 0:04:53.1]}
4. Bd3 {[%clk 0:04:57.4]} 4... Bd6 {[%clk 0:04:50.6]} 5. b3 {[%clk 0:04:56.8]}
5... c5 {[%clk 0:04:34.9]} 6. Bb2 {[%clk 0:04:56.7]} 6... b6 {[%clk 0:04:31.2]}
7. O-O {[%clk 0:04:56.6]} 7... O-O {[%clk 0:04:28.4]} 8. Nbd2 {[%clk 0:04:55.6]}
8... Bb7 {[%clk 0:04:23.2]} 9. Ne5 {[%clk 0:04:51.9]} 9... Nc6 {[%clk
0:03:45.4]} 10. a3 {[%clk 0:04:46.3]} 10... Qc7 {[%clk 0:03:37.9]} 11. f4 {[%clk
0:04:41.3]} 11... Ne7 {[%clk 0:03:21.4]} 12. g4 {[%clk 0:04:01]} 12... Ne4
{[%clk 0:03:07.2]} 13. g5 {[%clk 0:03:40.8]} 13... Nf5 {[%clk 0:02:58.6]} 14.
Rf3 {[%clk 0:03:26.2]} 14... f6 {[%clk 0:02:17.5]} 15. gxf6 {[%clk 0:03:15.2]}
15... gxf6 {[%clk 0:02:15.8]} 16. Ng4 {[%clk 0:03:13.6]} 16... Qg7 {[%clk
0:01:12.7]} 17. Rh3 {[%clk 0:03:07.6]} 17... Nxe3 {[%clk 0:01:02]} 18. Rxe3
{[%clk 0:03:01.2]} 18... h5 {[%clk 0:00:34.6]} 19. Nxe4 {[%clk 0:02:54.1]} 19...
dxe4 {[%clk 0:00:30.1]} 20. Bc4 {[%clk 0:02:50]} 20... Qxg4+ {[%clk 0:00:17.3]}
21. Qxg4+ {[%clk 0:02:43.8]} 21... hxg4 {[%clk 0:00:15.9]} 22. Bxe6+ {[%clk
0:02:42]} 22... Kh7 {[%clk 0:00:11.6]} 23. Bf5+ {[%clk 0:02:40.3]} 23... Kg7
{[%clk 0:00:06.5]} 24. Bxg4 {[%clk 0:02:35.9]} 24... Bxf4 {[%clk 0:00:00.4]} 25.
Rh3 {[%clk 0:02:29.1]} 1-0

[Event "Live Chess"]
[Site "Chess.com"]
[Date "2023.05.20"]
[Round "-"]
[White "OceanFloater"]
[Black "therealab0ne"]
[Result "1-0"]
[WhiteElo "1007"]
[BlackElo "702"]
[TimeControl "300"]
[EndTime "13:38:33 PDT"]
[Termination "OceanFloater won by resignation"]

1. e4 {[%clk 0:04:55.9]} 1... c5 {[%clk 0:04:58.6]} 2. Nf3 {[%clk 0:04:46]} 2...
Nc6 {[%clk 0:04:57.9]} 3. a3 {[%clk 0:04:43]} 3... Nf6 {[%clk 0:04:54.4]} 4. Nc3
{[%clk 0:04:40.1]} 4... g6 {[%clk 0:04:50]} 5. b4 {[%clk 0:04:39]} 5... cxb4
{[%clk 0:04:42.3]} 6. axb4 {[%clk 0:04:38.5]} 6... Nxb4 {[%clk 0:04:27.5]} 7.
Ba3 {[%clk 0:04:35.1]} 7... a5 {[%clk 0:04:24.2]} 8. e5 {[%clk 0:04:30]} 8...
Nfd5 {[%clk 0:04:18.1]} 9. Nxd5 {[%clk 0:04:28.2]} 9... Nxd5 {[%clk 0:04:17.1]}
10. Bc4 {[%clk 0:04:26.8]} 10... e6 {[%clk 0:04:15.2]} 11. Bxf8 {[%clk
0:04:23.8]} 11... Rxf8 {[%clk 0:04:10.2]} 12. O-O {[%clk 0:04:22.8]} 12... d6
{[%clk 0:03:38.1]} 13. Re1 {[%clk 0:04:17.6]} 13... dxe5 {[%clk 0:03:35]} 14.
Rxe5 {[%clk 0:04:14.1]} 14... f6 {[%clk 0:03:18.7]} 15. Re2 {[%clk 0:04:10.2]}
15... Kf7 {[%clk 0:03:16.8]} 16. Nd4 {[%clk 0:03:54.7]} 16... Kg8 {[%clk
0:02:56.9]} 17. Nxe6 {[%clk 0:03:49.6]} 17... Bxe6 {[%clk 0:02:54.8]} 18. Rxe6
{[%clk 0:03:48.9]} 18... Nf4 {[%clk 0:02:50.9]} 19. Rd6+ {[%clk 0:03:45.3]}
19... Kg7 {[%clk 0:02:44.6]} 20. Rxd8 {[%clk 0:03:44.5]} 20... Rfxd8 {[%clk
0:02:43.9]} 21. Qf3 {[%clk 0:03:37.1]} 21... Rxd2 {[%clk 0:02:25.1]} 22. Qxb7+
{[%clk 0:03:32.3]} 22... Kh6 {[%clk 0:02:21.4]} 23. Qxa8 {[%clk 0:03:31.2]}
23... g5 {[%clk 0:02:14]} 24. Qf8+ {[%clk 0:03:27.6]} 24... Kh5 {[%clk
0:02:11.9]} 25. Qf7+ {[%clk 0:03:22.7]} 25... Ng6 {[%clk 0:02:10]} 26. Qxh7+
{[%clk 0:03:21.1]} 26... Kg4 {[%clk 0:02:08.5]} 27. Be6+ {[%clk 0:03:20.1]}
27... Kf4 {[%clk 0:02:06]} 28. Qxg6 {[%clk 0:03:18]} 1-0

[Event "Live Chess"]
[Site "Chess.com"]
[Date "2023.05.20"]
[Round "-"]
[White "nigelst"]
[Black "KeithArkell"]
[Result "0-1"]
[WhiteElo "1832"]
[BlackElo "2615"]
[TimeControl "300"]
[EndTime "13:38:33 PDT"]
[Termination "KeithArkell won by resignation"]

1. e4 {[%clk 0:04:55.8]} 1... c6 {[%clk 0:04:59.2]} 2. d4 {[%clk 0:04:46.1]}
2... d5 {[%clk 0:04:54.1]} 3. exd5 {[%clk 0:04:44.3]} 3... cxd5 {[%clk
0:04:53.4]} 4. Bd3 {[%clk 0:04:43]} 4... Nf6 {[%clk 0:04:52.3]} 5. c3 {[%clk
0:04:40.9]} 5... Nc6 {[%clk 0:04:51.6]} 6. Bf4 {[%clk 0:04:39.7]} 6... Bg4
{[%clk 0:04:50.5]} 7. Qb3 {[%clk 0:04:37.5]} 7... Qd7 {[%clk 0:04:49.9]} 8. Nd2
{[%clk 0:04:34.9]} 8... e6 {[%clk 0:04:49.3]} 9. Ngf3 {[%clk 0:04:33.9]} 9...
Bd6 {[%clk 0:04:48.5]} 10. Bxd6 {[%clk 0:04:32]} 10... Qxd6 {[%clk 0:04:47.9]}
11. O-O {[%clk 0:04:30.5]} 11... O-O {[%clk 0:04:44.6]} 12. Rfe1 {[%clk
0:04:29.2]} 12... Bxf3 {[%clk 0:04:42.5]} 13. Nxf3 {[%clk 0:04:27.5]} 13... Qc7
{[%clk 0:04:41.9]} 14. Rac1 {[%clk 0:04:19.6]} 14... Rab8 {[%clk 0:04:37.5]} 15.
Ne5 {[%clk 0:04:17.4]} 15... Nxe5 {[%clk 0:04:36.2]} 16. Rxe5 {[%clk 0:04:03.6]}
16... g6 {[%clk 0:04:35.6]} 17. Rg5 {[%clk 0:03:45.3]} 17... b5 {[%clk
0:04:32.8]} 18. a3 {[%clk 0:03:37.2]} 18... Qf4 {[%clk 0:04:31.6]} 0-1

[Event "Live Chess"]
[Site "Chess.com"]
[Date "2023.05.20"]
[Round "-"]
[White "SirEntrails"]
[Black "Reggie016"]
[Result "0-1"]
[WhiteElo "535"]
[BlackElo "1070"]
[TimeControl "300"]
[EndTime "13:38:36 PDT"]
[Termination "Reggie016 won by checkmate"]

1. e4 {[%clk 0:04:56.9]} 1... e6 {[%clk 0:04:59.3]} 2. Nf3 {[%clk 0:04:55]} 2...
d5 {[%clk 0:04:56.8]} 3. Nc3 {[%clk 0:04:49.9]} 3... d4 {[%clk 0:04:56]} 4. Bb5+
{[%clk 0:04:34.2]} 4... c6 {[%clk 0:04:43.3]} 5. Bc4 {[%clk 0:04:26.4]} 5... b5
{[%clk 0:04:34.1]} 6. Bb3 {[%clk 0:04:17.6]} 6... a5 {[%clk 0:04:31.9]} 7. a3
{[%clk 0:04:11]} 7... a4 {[%clk 0:04:30.9]} 8. Ba2 {[%clk 0:04:09.7]} 8... dxc3
{[%clk 0:04:25.4]} 9. bxc3 {[%clk 0:04:03.1]} 9... Nf6 {[%clk 0:04:18.9]} 10. c4
{[%clk 0:04:02.1]} 10... Nxe4 {[%clk 0:04:15.7]} 11. cxb5 {[%clk 0:03:58.6]}
11... cxb5 {[%clk 0:04:03.3]} 12. d3 {[%clk 0:03:55.5]} 12... Nc3 {[%clk
0:03:59.5]} 13. Qd2 {[%clk 0:03:49]} 13... Nxa2 {[%clk 0:03:58.3]} 14. Rxa2
{[%clk 0:03:47.5]} 14... Bd6 {[%clk 0:03:56.5]} 15. O-O {[%clk 0:03:45.9]} 15...
O-O {[%clk 0:03:55.2]} 16. Rb2 {[%clk 0:03:43.7]} 16... Bd7 {[%clk 0:03:51.2]}
17. Ng5 {[%clk 0:03:33.6]} 17... h6 {[%clk 0:03:32.5]} 18. Ne4 {[%clk
0:03:29.7]} 18... Qc7 {[%clk 0:03:28.9]} 19. Nxd6 {[%clk 0:03:21.3]} 19... Qxd6
{[%clk 0:03:27.9]} 20. g3 {[%clk 0:03:13]} 20... Nc6 {[%clk 0:03:21]} 21. Rxb5
{[%clk 0:03:07.1]} 21... Nd4 {[%clk 0:03:16.1]} 22. Rb4 {[%clk 0:02:53.2]} 22...
Nf3+ {[%clk 0:03:14.9]} 23. Kg2 {[%clk 0:02:43.3]} 23... Nxd2 {[%clk 0:03:14.8]}
24. Rd1 {[%clk 0:02:37.7]} 24... Qd5+ {[%clk 0:03:07.8]} 25. Kg1 {[%clk
0:02:35.1]} 25... Nf3+ {[%clk 0:03:06.8]} 26. Kf1 {[%clk 0:02:29.9]} 26... Nxh2+
{[%clk 0:03:05.9]} 27. Kg1 {[%clk 0:02:28.4]} 27... Nf3+ {[%clk 0:02:58.1]} 28.
Kf1 {[%clk 0:02:26.9]} 28... Rab8 {[%clk 0:02:52.3]} 29. Rxb8 {[%clk 0:02:24]}
29... Rxb8 {[%clk 0:02:52.2]} 30. Be3 {[%clk 0:02:17.7]} 30... Qh5 {[%clk
0:02:42.9]} 31. Rc1 {[%clk 0:02:08.8]} 31... Qh3+ {[%clk 0:02:34.2]} 32. Ke2
{[%clk 0:02:05.1]} 32... Bc6 {[%clk 0:02:31.3]} 33. Ba7 {[%clk 0:01:58.6]} 33...
Rb2 {[%clk 0:02:29.1]} 34. g4 {[%clk 0:01:32.6]} 34... Qxg4 {[%clk 0:02:13.6]}
35. Be3 {[%clk 0:01:29.4]} 35... Nd4+ {[%clk 0:02:12]} 36. Kd2 {[%clk
0:01:23.4]} 36... Qe2+ {[%clk 0:02:10.3]} 37. Kc3 {[%clk 0:01:18.8]} 37... Nb5+
{[%clk 0:02:06.5]} 38. Kxb2 {[%clk 0:01:14.5]} 38... Bd5 {[%clk 0:01:58.6]} 39.
Rb1 {[%clk 0:00:48.1]} 39... Qh5 {[%clk 0:01:44.3]} 40. c4 {[%clk 0:00:42.4]}
40... Qe5+ {[%clk 0:01:42.1]} 41. Kc2 {[%clk 0:00:36.1]} 41... Nxa3+ {[%clk
0:01:41.1]} 42. Kd2 {[%clk 0:00:32.5]} 42... Nxb1+ {[%clk 0:01:38.9]} 43. Kc2
{[%clk 0:00:31.5]} 43... a3 {[%clk 0:01:26]} 44. cxd5 {[%clk 0:00:28.8]} 44...
a2 {[%clk 0:01:24.5]} 45. dxe6 {[%clk 0:00:24.9]} 45... a1=Q {[%clk 0:01:21.4]}
46. exf7+ {[%clk 0:00:23.6]} 46... Kxf7 {[%clk 0:01:20.3]} 47. Kd1 {[%clk
0:00:20.8]} 47... Nc3+ {[%clk 0:01:18.5]} 48. Kd2 {[%clk 0:00:19.3]} 48... Qb2+
{[%clk 0:01:16.6]} 49. Ke1 {[%clk 0:00:17.3]} 49... Qh2 {[%clk 0:01:15.2]} 50.
Kf1 {[%clk 0:00:16]} 50... Qh1# {[%clk 0:01:14.3]} 0-1

[Event "Live Chess"]
[Site "Chess.com"]
[Date "2023.05.20"]
[Round "-"]
[White "GMHarry-youtube"]
[Black "anatoliy10912"]
[Result "1-0"]
[WhiteElo "2075"]
[BlackElo "1547"]
[TimeControl "300"]
[EndTime "13:38:41 PDT"]
[Termination "GMHarry-youtube won by resignation"]

1. e4 {[%clk 0:04:59.1]} 1... e6 {[%clk 0:04:57.9]} 2. d4 {[%clk 0:04:57.9]}
2... d5 {[%clk 0:04:57.2]} 3. e5 {[%clk 0:04:57.6]} 3... c5 {[%clk 0:04:56.4]}
4. c3 {[%clk 0:04:57.3]} 4... Nc6 {[%clk 0:04:55.6]} 5. Nf3 {[%clk 0:04:55.6]}
5... Nge7 {[%clk 0:04:51.2]} 6. Be2 {[%clk 0:04:49.5]} 6... cxd4 {[%clk
0:04:46.9]} 7. O-O {[%clk 0:04:43.8]} 7... dxc3 {[%clk 0:04:43.8]} 8. Nxc3
{[%clk 0:04:43.7]} 8... Nf5 {[%clk 0:04:41.1]} 9. g4 {[%clk 0:04:38.5]} 9... Nh6
{[%clk 0:04:38.9]} 10. Bxh6 {[%clk 0:04:35.8]} 10... gxh6 {[%clk 0:04:37.9]} 11.
h3 {[%clk 0:04:21.1]} 11... Bg7 {[%clk 0:04:35.4]} 12. Bb5 {[%clk 0:04:17.2]}
12... Bd7 {[%clk 0:04:30.8]} 13. Qa4 {[%clk 0:04:15]} 13... Qc7 {[%clk
0:04:26.3]} 14. Rfd1 {[%clk 0:04:04.9]} 14... Nxe5 {[%clk 0:04:03.4]} 15. Nxe5
{[%clk 0:04:02.1]} 15... Bxe5 {[%clk 0:04:00.7]} 16. Nxd5 {[%clk 0:03:47.6]}
16... exd5 {[%clk 0:03:56.6]} 17. Bxd7+ {[%clk 0:03:34.5]} 17... Qxd7 {[%clk
0:03:21.4]} 18. Qxd7+ {[%clk 0:03:33.1]} 18... Kxd7 {[%clk 0:03:21.2]} 19. Rxd5+
{[%clk 0:03:32.5]} 19... Bd6 {[%clk 0:03:20.8]} 20. Rad1 {[%clk 0:03:30.9]}
20... Rad8 {[%clk 0:03:07.1]} 21. Rxd6+ {[%clk 0:03:29.8]} 21... Kc7 {[%clk
0:03:05.3]} 22. Rxd8 {[%clk 0:03:27.8]} 22... Rxd8 {[%clk 0:03:04.1]} 23. Rxd8
{[%clk 0:03:27.7]} 23... Kxd8 {[%clk 0:03:03.9]} 24. Kg2 {[%clk 0:03:27.3]}
24... Ke7 {[%clk 0:02:59.9]} 25. Kf3 {[%clk 0:03:24.6]} 25... Kd6 {[%clk
0:02:59.3]} 26. Ke4 {[%clk 0:03:24]} 26... Ke6 {[%clk 0:02:58.8]} 27. f4 {[%clk
0:03:22.8]} 27... h5 {[%clk 0:02:54.3]} 28. gxh5 {[%clk 0:03:20.2]} 28... f5+
{[%clk 0:02:51.8]} 29. Kd4 {[%clk 0:03:18.3]} 29... Kd6 {[%clk 0:02:50.5]} 30.
b4 {[%clk 0:03:14.1]} 30... h6 {[%clk 0:02:47.7]} 31. a4 {[%clk 0:03:12.3]}
31... a6 {[%clk 0:02:44.8]} 32. a5 {[%clk 0:03:08.1]} 32... Ke6 {[%clk
0:02:40.2]} 33. Kc5 {[%clk 0:03:05.9]} 33... Kd7 {[%clk 0:02:39.1]} 34. Kb6
{[%clk 0:03:05.1]} 34... Kc8 {[%clk 0:02:38.6]} 35. Kc5 {[%clk 0:03:00.2]} 35...
Kc7 {[%clk 0:02:37.9]} 36. Kd5 {[%clk 0:02:59.8]} 36... Kd7 {[%clk 0:02:37.3]}
37. Ke5 {[%clk 0:02:59.4]} 37... Kc6 {[%clk 0:02:36.2]} 38. Kxf5 {[%clk
0:02:58.1]} 38... Kb5 {[%clk 0:02:35.3]} 39. Kg6 {[%clk 0:02:57.5]} 39... Kxb4
{[%clk 0:02:35]} 40. f5 {[%clk 0:02:57.1]} 40... Kc5 {[%clk 0:02:34.6]} 41. f6
{[%clk 0:02:57]} 41... Kd6 {[%clk 0:02:34.2]} 42. f7 {[%clk 0:02:56.9]} 42...
Ke7 {[%clk 0:02:33.7]} 43. Kg7 {[%clk 0:02:55.9]} 43... b6 {[%clk 0:02:32.7]}
44. f8=Q+ {[%clk 0:02:55.4]} 44... Ke6 {[%clk 0:02:30.9]} 45. axb6 {[%clk
0:02:55.3]} 1-0

[Event "Live Chess"]
[Site "Chess.com"]
[Date "2023.05.20"]
[Round "-"]
[White "JoshMcK"]
[Black "kevinmilleruk"]
[Result "1/2-1/2"]
[WhiteElo "1579"]
[BlackElo "1150"]
[TimeControl "300"]
[EndTime "13:39:01 PDT"]
[Termination "Game drawn by repetition"]

1. e4 {[%clk 0:04:59.4]} 1... e5 {[%clk 0:04:57.8]} 2. Nf3 {[%clk 0:04:58.2]}
2... Nc6 {[%clk 0:04:55.7]} 3. Bb5 {[%clk 0:04:57.7]} 3... d6 {[%clk 0:04:54.5]}
4. d4 {[%clk 0:04:55.9]} 4... Bd7 {[%clk 0:04:49.6]} 5. Bxc6 {[%clk 0:04:52.8]}
5... Bxc6 {[%clk 0:04:47.2]} 6. Nc3 {[%clk 0:04:52.2]} 6... Nf6 {[%clk
0:04:43.5]} 7. d5 {[%clk 0:04:46.9]} 7... Bd7 {[%clk 0:04:39]} 8. O-O {[%clk
0:04:45.9]} 8... Bg4 {[%clk 0:04:37.6]} 9. h3 {[%clk 0:04:44.7]} 9... Bxf3
{[%clk 0:04:36.2]} 10. Qxf3 {[%clk 0:04:44]} 10... Be7 {[%clk 0:04:35.2]} 11. a4
{[%clk 0:04:39.8]} 11... O-O {[%clk 0:04:33.9]} 12. b4 {[%clk 0:04:38.2]} 12...
h6 {[%clk 0:04:32.3]} 13. Ne2 {[%clk 0:04:36.8]} 13... a5 {[%clk 0:04:29.5]} 14.
b5 {[%clk 0:04:34.5]} 14... Qd7 {[%clk 0:04:21]} 15. c4 {[%clk 0:04:33.2]} 15...
c6 {[%clk 0:04:19.8]} 16. Be3 {[%clk 0:04:28.4]} 16... cxd5 {[%clk 0:04:17.8]}
17. exd5 {[%clk 0:04:20.4]} 17... e4 {[%clk 0:04:15.1]} 18. Qg3 {[%clk
0:04:15.7]} 18... Rac8 {[%clk 0:04:04.6]} 19. Bxh6 {[%clk 0:04:13.5]} 19... Nh5
{[%clk 0:04:00.5]} 20. Qe3 {[%clk 0:03:58.7]} 20... gxh6 {[%clk 0:03:55.8]} 21.
Qxe4 {[%clk 0:03:57.1]} 21... Bf6 {[%clk 0:03:41.9]} 22. Nf4 {[%clk 0:03:50.8]}
22... Nxf4 {[%clk 0:03:36.6]} 23. Qxf4 {[%clk 0:03:44.9]} 23... Bxa1 {[%clk
0:03:35.1]} 24. Rxa1 {[%clk 0:03:43.5]} 24... Kh8 {[%clk 0:03:26.1]} 25. Qxh6+
{[%clk 0:03:33.7]} 25... Kg8 {[%clk 0:03:24.6]} 26. Qg5+ {[%clk 0:03:29.9]}
26... Kh7 {[%clk 0:03:20.3]} 27. Qh5+ {[%clk 0:03:27.2]} 27... Kg7 {[%clk
0:03:18.9]} 28. Qg5+ {[%clk 0:03:25.9]} 28... Kh7 {[%clk 0:03:17.5]} 29. Qh5+
{[%clk 0:03:23.4]} 29... Kg7 {[%clk 0:03:16.2]} 30. Qg5+ {[%clk 0:03:22.9]}
30... Kh7 {[%clk 0:03:15]} 1/2-1/2